Cogmind - Beta 9.5 @@@ ROGUE MODE // 2020.04.06 @ 16:57:19 Player: Odoacre Result: Destroyed by Y-45 Defender with Beam Rifle Performance ------------- Evolutions (1) 500 Regions Visited (2) 400 Robots Destroyed (13) 65 Value Destroyed (307) 307 Prototype IDs (0) 0 Alien Tech Used (0) 0 Bonus (0) 0 TOTAL SCORE: 1272 Bonus ------- None Cogmind --------- Core Integrity 0/400 Matter 204/300 Energy 99/100 System Corruption 0% Temperature Cool (9) Movement Core (150) Ox2 Location -9/Materials Parts ------- > --- POWER (1) -------- (None) > --- PROPULSION (3) --- (None) > --- UTILITY (3) ------ Medium Storage Unit > --- WEAPON (2) ------- (None) > --- INVENTORY (8) ---- (None) Peak State ------------ > --- POWER ------------ Light Ion Engine > --- PROPULSION ------- Wheel Compact Wheel > --- UTILITY ---------- Small Storage Unit > --- WEAPON ----------- EM Pulse Gun Light Assault Rifle > --- INVENTORY -------- (None) [Rating: 6] Favorites ----------- Power Ion Engine Engine Ion Engine Propulsion Compact Wheel Wheel Compact Wheel Utility Medium Storage Unit Storage Medium Storage Unit Processor Seismic Analyzer Weapon EM Pulse Gun Energy Gun EM Pulse Gun Ballistic Gun Light Assault Rifle Launcher Grenade Launcher Build | -11 -10 -9 ------- Run | Scr Mat Mat Slots Evolved 2 | . . 2 Power . | . . . Propulsion 1 | . . 1 Utility 1 | . . 1 Weapon . | . . . Parts Attached 15 | 6 6 3 Power 3 | 1 1 1 Engine 3 | 1 1 1 Core . | . . . Reactor . | . . . Propulsion 2 | 2 . . Treads . | . . . Leg . | . . . Wheel 2 | 2 . . Hover . | . . . Flight . | . . . Utility 4 | 1 3 . Device . | . . . Storage 3 | 1 2 . Processor 1 | . 1 . Hackware . | . . . Protection . | . . . Artifact . | . . . Weapon 6 | 2 2 2 Energy Gun 3 | 1 1 1 Energy Cannon . | . . . Ballistic Gun 2 | 1 . 1 Ballistic Cannon . | . . . Launcher 1 | . 1 . Special Weapon . | . . . Impact Weapon . | . . . Slashing Weapon . | . . . Piercing Weapon . | . . . Special Melee Weapon . | . . . Unidentified Prototypes . | . . . Parts Lost 11 | . 6 5 Power 2 | . 1 1 Propulsion 2 | . 1 1 Utility 1 | . . 1 Weapon 6 | . 4 2 Highest Loss Streak 5 | . 2 5 Average Slot Usage (%) 61 | . 75 28 Engine 10 | . 14 2 Wheel 15 | . 19 6 Storage 13 | . 14 11 Processor 3 | . 2 4 Energy Gun 9 | . 12 . Ballistic Gun 4 | . 5 2 Launcher 3 | . 5 . Naked Turns . | . . . Heaviest Build 17 | 10 17 11 Greatest Support 26 | 26 26 16 Greatest Overweight (x) 3 | 3 1 3 Average Overweight (x) . | 2 . 1 Largest Inventory Capacity 8 | 6 8 8 Average Capacity 6 | 5 6 8 Most Carried 3 | 2 3 1 Average Carried 1 | 1 1 . Final Capacity 8 | 6 8 8 Final Carried 1 | . 1 . Class Distribution -------------------- 100% | Mutant Dominant Class ---------------- Mutant | -10/Materials Mutant | -9/Materials Resources | -11 -10 -9 ----------- Run | Scr Mat Mat Matter Collected 347 | 229 88 30 Remotely . | . . . Salvage Created 290 | . 260 30 Parts 24 | . 21 3 Haulers Intercepted . | . . . Recyclers Shooed 3 | . 3 . Parts Field Recycled . | . . . Retrieved Matter . | . . . Parts Self-Destructed . | . . . Prevented . | . . . Kills | -11 -10 -9 ------- Run | Scr Mat Mat Combat Hostiles Destroyed 8 | . 7 1 Guns 6 | . 5 1 AOE 2 | . 2 . Classes Destroyed 5 | . 5 . Worker 2 | . 2 . Builder 1 | . 1 . Operator 2 | . 2 . Swarmer 1 | . 1 . Grunt 7 | . 6 1 Best Kill Streak 7 | . 7 1 Combat Bots Only 2 | . 2 1 Max Kills in Single Turn 2 | . 2 1 Gunslinging . | . . . Exploded 1 | . 1 . Melee . | . . . Uniques/NPCs Destroyed . | . . . Combat | -11 -10 -9 -------- Run | Scr Mat Mat Damage Taken 1176 | . 461 715 Core 480 | . 73 407 Absorbed by Shields . | . . . Core Remaining (%) 85 | 100 70 . Volleys Fired 51 | . 33 18 Largest 2 | . 2 1 Hottest 70 | . 70 40 Shots Fired 73 | . 55 18 Gun 65 | . 47 18 Cannon . | . . . Launcher 8 | . 8 . Special . | . . . Kinetic 33 | . 17 16 Thermal 10 | . 8 2 Explosive 8 | . 8 . Electromagnetic 22 | . 22 . Robot Hit Streak 9 | . 9 6 Robot Miss Streak 3 | . 3 2 Penetration Max . | . . . Secondary Targets 1 | . 1 . Max Gunslinging Chain 1 | . 1 . Shots Hit Robots 49 | . 35 14 Core Hits 23 | . 21 2 Critical Hits . | . . . Critical Kills . | . . . Critical Parts Destroyed . | . . . Melee Attacks . | . . . Impact . | . . . Slashing . | . . . Piercing . | . . . Sneak Attacks . | . . . Combat Hostiles . | . . . Follow-up Attacks . | . . . Damage Inflicted 1045 | . 837 208 Guns 569 | . 372 197 Cannons . | . . . Explosions 456 | . 456 . Melee . | . . . Ramming 20 | . 9 11 Kinetic 298 | . 112 186 Thermal 115 | . 104 11 Explosive 409 | . 409 . Electromagnetic 203 | . 203 . Impact . | . . . Slashing . | . . . Piercing . | . . . Highest Corruption . | . . . Average Corruption . | . . . Corruption Purged . | . . . Overload Shots . | . . . Overflow Damage 71 | . 71 . Projectiles . | . . . Explosions 71 | . 71 . Melee . | . . . Knockbacks 1 | . . 1 Impact 1 | . . 1 Kinetic . | . . . Secondary . | . . . Self-Inflicted Damage 68 | . 63 5 Shots 3 | . 3 . Rammed 3 | . 1 2 Targets Rammed 3 | . 1 2 Kicked . | . . . Crushed . | . . . Highest Temperature 122 | . 122 4 Average Temperature 40 | . 42 3 Received Heat Transfer 390 | . 150 240 Siege Activations . | . . . Robots Corrupted . | . . . Combat Hostiles . | . . . Parts Fried . | . . . Impact Corruptions . | . . . Robots Melted . | . . . Combat Hostiles . | . . . Parts Melted . | . . . Heat Transferred 200 | . 175 25 Parts Sabotaged . | . . . Parts Stolen . | . . . Parts Stripped . | . . . Power Chain Reactions 1 | . 1 . Missiles Intercepted . | . . . Alert | -11 -10 -9 ------- Run | Scr Mat Mat Peak Influence 240 | . 240 117 Average Influence 97 | . 122 98 Maximum Alert Level 1 | . 1 . Low Security (%) 87 | 100 79 100 Level 1 12 | . 20 . Level 2 . | . . . Level 3 . | . . . Level 4 . | . . . Level 5 . | . . . High Security . | . . . Max Security . | . . . Squads Dispatched 4 | . 3 1 Investigation 1 | . 1 . Extermination . | . . . Reinforcement 3 | . 2 1 Assault . | . . . Garrison . | . . . Intercept . | . . . Construction Impeded . | . . . Haulers Reinforced . | . . . Stealth | -11 -10 -9 --------- Run | Scr Mat Mat Distress Signals 2 | . 2 . Communications Jammed . | . . . Distress Signals . | . . . Times Spotted 19 | . 13 6 Peak Tracking Total 4 | . 3 4 Tactical Retreats 1 | . 1 . Traps | -11 -10 -9 ------- Run | Scr Mat Mat Traps Triggered 1 | . 1 . Indirectly . | . . . Trap Hack Attempts . | . . . Triggered . | . . . Disarmed . | . . . Reprogrammed . | . . . Reused . | . . . Traps Extracted . | . . . Installed . | . . . Triggered . | . . . Machines | -11 -10 -9 ---------- Run | Scr Mat Mat Machines Disabled 2 | . 2 . Max in Single Turn 1 | . 1 . Machines Sabotaged . | . . . Garrisons Compromised . | . . . Overloaded Fab Kills . | . . . Fab Network Shutdowns . | . . . Hacking | -11 -10 -9 --------- Run | Scr Mat Mat Machines Accessed . | . . . Terminals . | . . . Fabricators . | . . . Repair Stations . | . . . Recycling Units . | . . . Scanalyzers . | . . . Garrison Access . | . . . Total Hacks . | . . . Successful . | . . . Failed . | . . . Catastrophic . | . . . Database Lockouts . | . . . Manual . | . . . Terminals . | . . . Fabricators . | . . . Repair Stations . | . . . Recycling Units . | . . . Scanalyzers . | . . . Garrison Access . | . . . Terminal Hacks . | . . . Fabricator Hacks . | . . . Repair Station Hacks . | . . . Recycling Unit Hacks . | . . . Scanalyzer . | . . . Garrison Access Hacks . | . . . Unauthorized Hacks . | . . . Terminals . | . . . Fabricators . | . . . Repair Stations . | . . . Recycling Units . | . . . Scanalyzers . | . . . Garrison Access . | . . . Data Cores Recovered . | . . . Used . | . . . Hacking Detections . | . . . Full Trace Events . | . . . Feedback Events . | . . . Feedback Blocked . | . . . Robot Schematics Acquired . | . . . Robots Built . | . . . Matter . | . . . Time . | . . . Total Robot Build Rating . | . . . Part Schematics Acquired . | . . . Parts Built . | . . . Matter . | . . . Time . | . . . Total Part Build Rating . | . . . Parts Repaired . | . . . Time . | . . . Parts Recycled . | . . . Recycled Matter . | . . . Retrieved Matter . | . . . Retrieved Components . | . . . Parts Scanalyzed . | . . . Part Schematics Acquired . | . . . Parts Damaged . | . . . Bothacking | -11 -10 -9 ------------ Run | Scr Mat Mat Used RIF Installer . | . . . Robots Hacked . | . . . Non-combat . | . . . Combat . | . . . Robot Hacks Applied . | . . . Relay Couplers Released . | . . . Robots Rewired . | . . . Allies Hacked . | . . . Hacks Repelled . | . . . Allies | -11 -10 -9 -------- Run | Scr Mat Mat Total Allies . | . . . Largest Group . | . . . Highest-Rated Group . | . . . Highest-Rated Ally . | . . . Total Orders . | . . . Ally Attacks . | . . . Total Damage . | . . . Kills . | . . . Allies Corrupted . | . . . Allies Melted . | . . . Intel | -11 -10 -9 ------- Run | Scr Mat Mat Robot Analysis Total . | . . . Derelict Logs Recovered . | . . . Drone Launches . | . . . Drone Recoveries . | . . . Exploration | -11 -10 -9 ------------- Run | Scr Mat Mat Turns Passed 488 | 76 289 123 Spaces Moved 297 | 41 198 58 Core 80 | 40 . 40 Treads . | . . . Legs . | . . . Wheels 217 | 1 198 18 Hover . | . . . Flight . | . . . Fastest Speed 50 | 50 90 100 Average Speed 114 | 157 97 143 Slowest Speed 200 | 200 110 200 Overloaded Moves . | . . . Propulsion Burnouts . | . . . Robots Hopped . | . . . Cave-ins Triggered . | . . . Exploration Rate (%) 18 | 5 42 9 Regions Visited 2 Branch Regions . Pre-discovered Areas . | . . . Known Exits Taken . | . . . Unknown Exits Taken 2 | 1 1 . Scrap Searched . | . . . Spaces Dug . | . . . Terrain Destroyed 55 | . 55 . Melee . | . . . Projectile . | . . . AOE 55 | . 55 . Actions | -11 -10 -9 --------- Run | Scr Mat Mat Total 373 | 50 242 81 Wait 1 | . 1 . Move 295 | 40 197 58 Hop . | . . . Pick Up 4 | 2 2 . Fast Attach 11 | 6 3 2 Attach 3 | . 2 1 Detach . | . . . Swap 1 | . 1 . Drop 4 | 2 2 . Fire 51 | . 33 18 Melee . | . . . Ram 3 | . 1 2 Kick . | . . . Crush . | . . . Escape Stasis . | . . . Rewire . | . . . Trap . | . . . Miscellaneous . | . . . Route ------- -11/Scrapyard -10/Materials -9/Materials History --------- Turn | Location | Event 11 | -11/Scrapyard | Discovered new exit (range 16) 77 | -11/Scrapyard | Entered Materials 323 | -10/Materials | Build established: Mutant 359 | -10/Materials | Discovered new exit (range 7) 366 | -10/Materials | Entered another Materials area 366 | -9/Materials | Evolved 2 slots: Propulsion x1, Utility x1 451 | -9/Materials | Core integrity fell below 50% 467 | -9/Materials | Core integrity fell below 20% 489 | -9/Materials | Destroyed by Y-45 Defender with Beam Rifle Last Messages --------------- 00383_ O-16 Technician: "IFF HANDSHAKE FAILED. SECURING TERMINAL." 00384_ O-16 Technician uses terminal to summon reinforcements. 00384_ ALERT: Hostiles spotted, dispatching reinforcements to Terminal M006. 00384_ O-16 Technician locks terminal. 00385_ Slammed into O-16 Technician. 00385_ O-16 Technician knocked back. 00385_ Com. Wheel permanently disabled. 00385_ Destabilizing: Short circuit. 00408_ Lgt. Ion Engine destroyed. 00417_ Seismic Analyzer destroyed. 00423_ Acquired Autogun. 00428_ G-34 Mercenary destroyed. 00432_ Broken Com. Wheel destroyed. 00453_ Autogun destroyed. 00456_ Acquired Sml. Laser. 00461_ Sml. Laser destroyed. 00462_ Slammed into G-34 Mercenary. 00462_ Destabilizing: Core damaged (-12). 00463_ Acquired 30 matter. 00466_ T-07 Excavator is excavating. Map ----- +----------------------------------------------------+ | | | | | | | | | | | | | | | | | | | | | ????????????????????????????????? | | ????????????????????????????????? | | ????????????????????????????????? | | ????????????????????????????????? | | ????????????????????????????????? | | ????????????????????????????????? | | ????????????????????????????????? | | ????????????????????????????????? | | ????????????????????????????????? | | ????????????????????????????????? | | ????????????????????????????????? | | ????#+#######+#?????????????????? | | ????# ** #?????????????????? | | ????# *[ #?????????????????? | | ????# #?????????????????? | | ????#/ @ #?????????????????? | | ????# #?????????????????? | | ???## #?????????????????? | | ???#Y #?????????????????? | | ???## #?????????????????? | | ????####/######?????????????????? | | ???????#g#??????????????????????? | | ???????# #??????????????????????? | | ???????# #??????????????????????? | | ???????# #????#######???????????? | | ????####Y###### #####???????? | | ????# # ??????? | | ????# ??????? | | ????## # ??????? | | ?????##### #### ###?????????? | | ?????????# #???# ##???????????? | | ???????###/##### #????? ?????? | | ???????# == # # = ??????? | | ???????# / + ?????? | | ???????# # #????????????? | | ???????# # #????????????? | | ???????######### #?######?????? | | ????????# # #? #?????? | | ????????# # # """ #?????? | | ????????# # # """ #?????? | +----------------------------------------------------+ Best States ------------- Heat Dissipation 28 Energy Generation 10 Energy Capacity 250 Matter Stores 300 Matter Capacity 300 Sight Range 16 Terrain Scan Density 60 Evasion (%) 42 Item Schematics ----------------- None Robot Schematics ------------------ None Fabricated ------------ Nothing Alien Tech Used ----------------- None Achievements -------------- None Challenges ------------ None Game ------ Seed PoweredFusionBeam Manual? 0 Play Time 00:09:53 Cumulative 16.5 hours Start 2020.04.06 @ 16:47:54 End 2020.04.06 @ 16:57:19 Sessions 1 Manual Loads 0 Difficulty Rogue Special Mode None Game No. 24 Rogue 23 Adventurer 1 Explorer 0 Win Type - Total 0 Types 0/0/0/0/0/0/0 Lore% 19 Gallery% 17 Achievement% 17 Wizard Run 0 Options --------- ASCII 1 Keyboard 0 Movement Vi Keybinds 0 Fullscreen 1 Font 28/SmallcapsGlow Map View 84x54 Tactical HUD 1 Map Filters NONE Filters NONE Steam 1 RUN: 2c6feb19-03ec-4a3a-ace4-84480fcd8867